fUST/lending_fUST_20260428
["ID","MTS","AMOUNT","RATE_DAILY","PERIOD"]
[421270308,1777307439313,-151.0,0.00013164,2]
[421270309,1777307439322,-2144.61969555,0.00013164,2]
[421270310,1777307439332,-13031.21982589,0.00013329,2]
[421270311,1777307439342,-385.03929413,0.00013365,14]
[421270312,1777307439351,-500.0,0.00013699,2]
[421270313,1777307439360,-500.0,0.00013699,2]
[421270314,1777307439369,-1000.0,0.00013699,2]
[421270315,1777307439379,-179.9640072,0.00013897,2]
[421270316,1777307439388,-160.0,0.00013953,2]
[421270317,1777307439398,-864.0,0.00014083,2]
[421270318,1777307439408,-646.0,0.00014206,2]
[421270319,1777307439416,-821.0,0.00014325,2]
[421270320,1777307439426,-821.0,0.00014325,2]
[421270321,1777307439435,-204.0,0.00014515,2]
[421270322,1777307439445,-6145.74,0.00014516,2]
[421270323,1777307439455,-13031.21982589,0.00014643,2]
[421270324,1777307439464,-5888.0,0.00014703,2]
[421270325,1777307439474,-5888.0,0.00014734,2]
[421270326,1777307439483,-5888.0,0.00014833,2]
[421270327,1777307439492,-5888.0,0.00014845,2]
[421270328,1777307439502,-5888.0,0.00014855,2]
[421270329,1777307439511,-200.0,0.0001486,2]
[421270330,1777307439520,-316.52038385,0.000149,2]
[421270331,1777307439530,-316.52038385,0.000149,2]
[421270332,1777307439540,-821.0,0.00014965,2]
[421270333,1777307439548,-10143.97030121,0.00015,2]
[421270334,1777307439559,-2000.0,0.00015,2]
[421270335,1777307439568,-2000.0,0.00015,2]
[421270336,1777307439578,-2000.0,0.00015,2]
[421270337,1777307439588,-2000.0,0.00015,2]
[421270338,1777307439597,-2000.0,0.00015,2]
[421270339,1777307439607,-2000.0,0.00015,2]
[421270340,1777307439616,-2000.0,0.00015,2]
[421270341,1777307439625,-2000.0,0.00015,2]
[421270342,1777307439635,-2000.0,0.00015,2]
[421270343,1777307439643,-2000.0,0.00015,2]
[421270344,1777307439653,-2000.0,0.00015,2]
[421270346,1777307439662,-2000.0,0.00015,2]
[421270347,1777307439672,-2000.0,0.00015,2]
[421270348,1777307439681,-2000.0,0.00015,2]
[421270349,1777307439691,-2000.0,0.00015,2]
[421270350,1777307439700,-2000.0,0.00015,2]
[421270351,1777307439710,-2000.0,0.00015,2]
[421270352,1777307439719,-2000.0,0.00015,2]
[421270353,1777307439728,-2000.0,0.00015,2]
[421270354,1777307439737,-2000.0,0.00015,2]
[421270355,1777307439747,-5888.0,0.00015003,2]
[421270356,1777307439756,-5888.0,0.00015008,2]
[421270357,1777307439766,-5888.0,0.00015033,2]
[421270358,1777307439775,-177.93775368,0.00015068,2]
[421270359,1777307439785,-2564.97614572,0.00015078,2]
[421270360,1777307439795,-736.02860613,0.00015097,2]
[421270361,1777307439804,-10143.97030121,0.000152,2]
[421270362,1777307439814,-151.0,0.000152,2]
[421270363,1777307439824,-152.0,0.00015202,7]
[421270364,1777307439834,-152.0,0.00015217,7]
[421270365,1777307439843,-10143.97030121,0.000153,2]
[421270366,1777307439852,-5888.0,0.00015348,2]
[421270367,1777307439862,-5888.0,0.0001535,2]
[421270368,1777307439871,-5888.0,0.00015368,2]
[421270369,1777307439882,-282923.18830403,0.00015386,2]
[421270370,1777307439895,-8544.0872653,0.00015386,2]
[421270371,1777307439908,-5000.0,0.00015386,2]
[421270417,1777307440946,-15468.67238213,0.00015386,2]
[421270418,1777307441043,-537.123759,0.00015386,2]
[421270419,1777307441058,-78174.77187285,0.00015386,2]
[421270443,1777307446834,-334.40886855,0.00010699,2]
[421270444,1777307446844,-2211.0,0.00011206,2]
[421270445,1777307446854,-420.96444809,0.00014206,2]
[421270446,1777307446866,-756.85469116,0.00014206,2]
[421270447,1777307447161,-1033.18086075,0.00014206,2]
[421270448,1777307447171,-1709.98409714,0.00015078,2]
[421270449,1777307447181,-19016.28680311,0.00015386,2]
[421270464,1777307490462,200.0,0.00024346,120]
[421270465,1777307550495,200.0,0.00024015,120]
[421270466,1777307571434,267.82521463,0.00025405,120]
[421270469,1777308489450,500.0,0.00025307,120]
[421270477,1777308632517,-3607.3120919,9.952e-05,10]
[421270478,1777308632527,-562.0,0.00010155,2]
[421270479,1777308632536,-150.0,0.00010156,2]
[421270480,1777308632547,-280.872,0.0001029,2]
[421270481,1777308632556,-209.94026082,0.00010362,2]
[421270482,1777308632566,-300.0,0.00010399,2]
[421270483,1777308632575,-374.91069638,0.000104,2]
[421270484,1777308632585,-1330.28214737,0.000104,2]
[421270485,1777308632595,-1092.44388913,0.000104,2]
[421270486,1777308632604,-1409.22433752,0.000104,2]
[421270487,1777308632614,-852.59642188,0.000104,2]
[421270488,1777308632623,-222.75718508,0.000104,2]
[421270489,1777308632632,-566.0170469,0.000104,2]
[421270490,1777308632641,-46826.30046694,0.000104,2]
[421270510,1777308638926,-1009501.07031797,0.000104,2]
[421270511,1777308638937,-19507.1685314,0.000104,2]
[421270512,1777308638948,-1538.17840722,0.000104,2]
[421270513,1777308638959,-3992.27447946,0.000104,2]
[421270522,1777308640893,-383.015,0.000104,2]
[421270569,1777308643688,-2300.245,0.000104,2]
[421270580,1777308646971,-1257.42635663,0.000104,2]
[421270581,1777308647028,-5142.00043291,0.000104,2]
[421270582,1777308647041,-7667.0,0.000104,2]
[421270583,1777308647297,-494.293216,0.000104,2]
[421270584,1777308647309,-351.92062858,0.000104,2]
[421270585,1777308647353,-4276.98010339,0.000104,2]
[421270586,1777308647410,-5173.46939032,0.000104,2]
[421270596,1777309261825,501.26081695,0.00025252,120]
[421270597,1777309465941,-151.0,7.523e-05,10]
[421270665,1777309838716,-7816.56,7e-05,2]
[421270666,1777309838726,-519.0,7e-05,2]
[421270667,1777309838736,-300.0,7.139e-05,2]
[421270668,1777309838745,-300.0,7.139e-05,2]
[421270669,1777309838755,-300.0,7.139e-05,2]
[421270670,1777309838764,-300.0,7.139e-05,2]
[421270671,1777309838774,-300.0,7.139e-05,2]
[421270672,1777309838783,-300.0,7.139e-05,2]
[421270673,1777309838794,-300.0,7.139e-05,2]
[421270674,1777309838803,-300.0,7.139e-05,2]
[421270675,1777309838813,-300.0,7.139e-05,2]
[421270676,1777309838822,-300.0,7.139e-05,2]
[421270677,1777309838832,-300.0,7.139e-05,2]
[421270678,1777309838841,-300.0,7.139e-05,2]
[421270679,1777309838851,-300.0,7.139e-05,2]
[421270680,1777309838860,-300.0,7.139e-05,2]
[421270681,1777309838870,-300.0,7.139e-05,2]
[421270682,1777309838880,-600.0,7.281e-05,2]
[421270683,1777309838891,-150.0,7.299e-05,2]
[421270684,1777309838901,-4554.6781588,7.6e-05,2]
[421270685,1777309838911,-720.0,8.009e-05,2]
[421270686,1777309838920,-864.0,8.81e-05,2]
[421270687,1777309838929,-177.0,9.299e-05,2]
[421270688,1777309838939,-1000.0,9.691e-05,2]
[421270689,1777309838948,-224.697,0.00010094,2]
[421270690,1777309838958,-234.08620798,0.00010199,2]
[421270691,1777309838966,-500.0,0.00010199,2]
[421270692,1777309838975,-500.0,0.00010199,2]
[421270693,1777309838984,-500.0,0.00010199,2]
[421270694,1777309838992,-324.85144215,0.00010199,2]
[421270695,1777309839002,-495.59463166,0.00010199,2]
[421270696,1777309839011,-500.0,0.00010199,2]
[421270697,1777309839019,-500.0,0.00010199,2]
[421270698,1777309839029,-500.0,0.00010199,2]
[421270699,1777309839038,-500.0,0.00010199,2]
[421270700,1777309839047,-500.0,0.00010199,2]
[421270701,1777309839057,-409.75589483,0.00010199,2]
[421270702,1777309839066,-36577.31875439,0.000102,2]
[421270703,1777309839078,-1477.8415112,0.000102,2]
[421270704,1777309839089,-1805.26752108,0.000102,2]
[421270705,1777309839100,-203185.50075101,0.000102,2]
[421270706,1777309839112,-76671.00000002,0.000102,2]
[421270749,1777309841105,-6423.94677741,0.000102,2]
[421270750,1777309841117,-671.77936835,0.000102,2]
[421270751,1777309841128,-2458.4607422,0.000102,2]
[421270752,1777309841158,-6085.88211101,0.000102,2]
[421270753,1777309841170,-703.674,0.000102,2]
[421270831,1777309846611,-3805.93678142,0.000102,2]
[421270833,1777309846623,-1563.83098617,0.000102,2]
[421270842,1777309847095,-141478.36125108,0.000102,2]
[421270843,1777309847107,-1756.26614603,0.000102,2]
[421270844,1777309847149,-1499.01359077,0.000102,2]
[421270845,1777310724925,667.19,0.00025206,120]
[421270846,1777310940260,15175.470317,0.00025206,120]
[421270851,1777311016342,-179.758,9.898e-05,2]
[421270852,1777311016367,-394.242,9.898e-05,2]
[421270861,1777311031848,-164.758,9.898e-05,2]
[421270862,1777311031858,-300.0,9.899e-05,2]
[421270863,1777311031869,-300.0,9.899e-05,2]
[421270864,1777311031878,-1200.0,9.899e-05,2]
[421270865,1777311031887,-576.91240794,9.9e-05,2]
[421270866,1777311031896,-1435.01770161,9.9e-05,2]
[421270867,1777311031906,-1242.1835254,9.9e-05,2]
[421270868,1777311031915,-150.0,9.923e-05,2]
[421270869,1777311031925,-2095.5830158,9.997e-05,2]
[421270870,1777311031935,-163.86034559,9.999e-05,2]
[421270871,1777311031944,-378.86176609,9.999e-05,2]
[421270872,1777311031954,-1383.54,0.0001,2]
[421270873,1777311031964,-382.23118931,0.0001,2]
[421270874,1777311031976,-1286.90383156,0.0001,2]
[421270899,1777311037912,-503.8814169,9.999e-05,2]
[421270900,1777311037924,-2.01433452,9.999e-05,2]
[421270901,1777311037934,-567.15429357,0.0001,2]
[421270902,1777311037973,-2849.8060003,0.0001,2]
[421270984,1777311040321,-5180.09590182,0.0001,2]
[421271056,1777311046563,-5785.22557891,0.0001,2]
[421271074,1777311062460,-1050.91312664,0.0001,2]
[421271167,1777312238175,-28.02891422,9.414e-05,2]
[421271168,1777312238311,-560.78235578,9.414e-05,2]
[421271169,1777312238323,-1159.55327795,9.414e-05,2]
[421271170,1777312238334,-552.0,9.414e-05,2]
[421271171,1777312238343,-150.0,9.534e-05,2]
[421271172,1777312238352,-179.758,9.702e-05,2]
[421271173,1777312238362,-300.0,9.799e-05,2]
[421271174,1777312238371,-723309.04809753,9.8e-05,2]
[421271199,1777312240526,-21371.85430732,9.8e-05,2]
[421271200,1777312240538,-1825.08070627,9.8e-05,2]
[421271212,1777312246040,-878.91953977,9.8e-05,2]
[421271297,1777312246831,-3461.90317999,9.8e-05,2]
[421271299,1777312246843,-7841.36014716,9.8e-05,2]
[421271302,1777312246854,-6297.45729971,9.8e-05,2]
[421271306,1777312246885,-23336.62417718,9.8e-05,2]
[421271308,1777312246895,-500.50495496,9.999e-05,2]
[421271310,1777312246905,-703.91312664,9.999e-05,2]
[421271312,1777312246915,-1952.9984136,0.00010188,2]
[421271314,1777312246925,-300.0,0.00010403,2]
[421271316,1777312246935,-300.0,0.00010403,2]
[421271318,1777312246945,-300.0,0.00010403,2]
[421271320,1777312246956,-300.0,0.00010403,2]
[421271322,1777312246966,-300.0,0.00010403,2]
[421271324,1777312246976,-300.0,0.00010403,2]
[421271325,1777312246986,-300.0,0.00010403,2]
[421271328,1777312246997,-300.0,0.00010403,2]
[421271329,1777312247007,-300.0,0.00010403,2]
[421271331,1777312247017,-300.0,0.00010403,2]
[421271333,1777312247027,-300.0,0.00010403,2]
[421271335,1777312247038,-300.0,0.00010403,2]
[421271337,1777312247048,-300.0,0.00010403,2]
[421271340,1777312247065,-300.0,0.00010403,2]
[421271341,1777312247075,-300.0,0.00010403,2]
[421271343,1777312247085,-600.0,0.00010403,2]
[421271345,1777312247095,-420.0,0.00010779,2]
[421271347,1777312247105,-152.0,0.00010814,7]
[421271349,1777312247116,-152.0,0.00010814,7]
[421271352,1777312247127,-500.0,0.00010959,2]
[421271354,1777312247137,-500.0,0.00010959,2]
[421271356,1777312247147,-270.0811874,0.00010959,2]
[421271358,1777312247158,-500.0,0.00010959,2]
[421271360,1777312247167,-5000.0,0.000114,2]
[421271361,1777312247178,-209.91404124,0.0001142,2]
[421271363,1777312247187,-720.0,0.00011443,2]
[421271364,1777312247197,-177.0,0.00011534,2]
[421271366,1777312247207,-2211.0,0.00011675,2]
[421271368,1777312247216,-646.0,0.00011675,2]
[421271370,1777312247226,-1410.0,0.00011675,2]
[421271372,1777312247236,-442.0,0.00011675,2]
[421271374,1777312247246,-197.0,0.00011857,2]
[421271376,1777312247257,-663.22608708,0.00012218,2]
[421271378,1777312247266,-2652.90434831,0.00012218,2]
[421271380,1777312247276,-5963.06574892,0.00012218,2]
[421271382,1777312247286,-864.0,0.00012588,2]
[421271384,1777312247296,-500.0,0.00012935,2]
[421271386,1777312247306,-500.0,0.00013163,2]
[421271388,1777312247315,-151.0,0.0001318,2]
[421271390,1777312247324,-325.5033173,0.0001318,2]
[421271392,1777312247334,-455.9805711,0.0001318,2]
[421271394,1777312247344,-325.4780488,0.00013204,2]
[421271396,1777312247354,-454.2362146,0.00013204,2]
[421271398,1777312247364,-455.9452987,0.00013204,2]
[421271400,1777312247373,-500.0,0.00013208,2]
[421271402,1777312247382,-155.0,0.00013243,2]
[421271404,1777312247391,-210.75940143,0.00013365,14]
[421271406,1777312247401,-160.0,0.00013441,2]
[421271408,1777312247410,-277.41193959,0.00013482,2]
[421271410,1777312247419,-500.0,0.00013482,2]
[421271412,1777312247428,-204.0,0.00013534,2]
[421271414,1777312247438,-500.0,0.00013698,2]
[421271416,1777312247447,-500.0,0.00013698,2]
[421271417,1777312247456,-500.0,0.00013698,2]
[421271419,1777312247466,-500.0,0.00013698,2]
[421271421,1777312247475,-500.0,0.00013698,2]
[421271423,1777312247485,-500.0,0.00013698,2]
[421271425,1777312247494,-500.0,0.00013698,2]
[421271427,1777312247504,-500.0,0.00013698,2]
[421271429,1777312247513,-500.0,0.00013698,2]
[421271431,1777312247523,-500.0,0.00013698,2]
[421271433,1777312247532,-500.0,0.00013698,2]
[421271435,1777312247542,-500.0,0.00013698,2]
[421271437,1777312247552,-500.0,0.00013698,2]
[421271440,1777312247564,-500.0,0.00013698,2]
[421271442,1777312247574,-500.0,0.00013698,2]
[421271443,1777312247585,-195.52272931,0.00013698,2]
[421271450,1777312247636,-304.47727069,0.00013698,2]
[421271452,1777312247646,-500.0,0.00013698,2]
[421271454,1777312247655,-500.0,0.00013698,2]
[421271456,1777312247667,-500.0,0.00013698,2]
[421271458,1777312247676,-500.0,0.00013698,2]
[421271460,1777312247686,-500.0,0.00013698,2]
[421271462,1777312247695,-500.0,0.00013698,2]
[421271464,1777312247705,-500.0,0.00013698,2]
[421271466,1777312247715,-500.0,0.00013698,2]
[421271467,1777312247724,-500.0,0.00013698,2]
[421271469,1777312247734,-500.0,0.00013698,2]
[421271471,1777312247743,-500.0,0.00013698,2]
[421271472,1777312247752,-500.0,0.00013698,2]
[421271474,1777312247761,-500.0,0.00013698,2]
[421271476,1777312247771,-500.0,0.00013698,2]
[421271478,1777312247780,-500.0,0.00013698,2]
[421271480,1777312247790,-540.4,0.00013698,2]
[421271481,1777312247799,-2000.0,0.00013699,7]
[421271483,1777312247809,-1000.0,0.00013699,2]
[421271485,1777312247818,-500.0,0.00013756,2]
[421271486,1777312247828,-1000.0,0.00013846,2]
[421271487,1777312247837,-255.03237857,0.00013897,2]
[421271488,1777312247847,-649.0,0.00013924,2]
[421271489,1777312247857,-166.0,0.00013924,2]
[421271490,1777312247866,-649.0,0.00013924,2]
[421271491,1777312247876,-166.0,0.00013924,2]
[421271492,1777312247886,-166.0,0.00013924,2]
[421271493,1777312247895,-159.86712527,0.00013924,2]
[421271494,1777312247905,-272.61022012,0.00013924,2]
[421271495,1777312247915,-500.0,0.0001403,2]
[421271496,1777312247924,-219.35956617,0.00014156,2]
[421271497,1777312247934,-500.0,0.00014304,2]
[421271498,1777312247943,-370.0,0.0001456,2]
[421271499,1777312247953,-370.0,0.00014573,2]
[421271500,1777312248195,-370.0,0.00014577,2]
[421271501,1777312248205,-370.0,0.00014607,2]
[421271502,1777312248215,-162.380719,0.00014616,2]
[421271503,1777312248225,-445.202766,0.00014616,2]
[421271504,1777312248235,-151.0,0.00014616,2]
[421271505,1777312248244,-537.6845,0.00014616,2]
[421271506,1777312248253,-162.380719,0.00014616,2]
[421271507,1777312248263,-537.6845,0.00014616,2]
[421271508,1777312248272,-151.0,0.00014616,2]
[421271509,1777312248282,-151.0,0.00014616,2]
[421271510,1777312248292,-151.0,0.00014616,2]
[421271511,1777312248302,-1957.856,0.00014616,2]
[421271512,1777312248312,-151.0,0.00014616,2]
[421271513,1777312248322,-151.0,0.00014616,2]
[421271514,1777312248332,-151.0,0.00014616,2]
[421271515,1777312248341,-151.0,0.00014616,2]
[421271516,1777312248351,-151.0,0.00014616,2]
[421271517,1777312248362,-151.0,0.00014616,2]
[421271518,1777312248371,-151.0,0.00014616,2]
[421271519,1777312248382,-151.0,0.00014616,2]
[421271520,1777312248391,-151.0,0.00014616,2]
[421271521,1777312248401,-151.0,0.00014616,2]
[421271522,1777312248411,-151.0,0.00014616,2]
[421271523,1777312248420,-151.0,0.00014616,2]
[421271524,1777312248430,-156.89658255,0.00014616,2]
[421271525,1777312248440,-151.0,0.00014616,2]
[421271526,1777312248450,-151.0,0.00014616,2]
[421271527,1777312248460,-151.0,0.00014616,2]
[421271528,1777312248470,-151.0,0.00014616,2]
[421271529,1777312248480,-152.11439807,0.00014616,2]
[421271530,1777312248490,-2150.738,0.00014616,2]
[421271531,1777312248499,-557.5788265,0.00014671,2]
[421271532,1777312248509,-2030.296672,0.00014671,2]
[421271533,1777312248519,-1946.437,0.00014675,2]
[421271534,1777312248528,-646.0,0.00014675,2]
[421271535,1777312248537,-1361.756,0.00014675,2]
[421271536,1777312248547,-442.0,0.00014675,2]
[421271537,1777312248556,-578.20924308,0.00014726,2]
[421271538,1777312248566,-2105.41764886,0.00014726,2]
[421271539,1777312248576,-370.0,0.00014753,2]
[421271540,1777312248585,-201.83,0.00014761,2]
[421271541,1777312248594,-370.0,0.00014771,2]
[421271542,1777312248604,-599.60298507,0.00014781,2]
[421271543,1777312248615,-2183.31810187,0.00014781,2]
[421271544,1777312248624,-370.0,0.00014789,2]
[421271545,1777312248633,-621.78829552,0.00014836,2]
[421271546,1777312248643,-2264.10087164,0.00014836,2]
[421271547,1777312248653,-644.79446246,0.00014891,2]
[421271548,1777312248662,-2347.87260389,0.00014891,2]
[421271549,1777312248672,-329.93787211,0.000149,2]
[421271550,1777312248687,-329.93787211,0.000149,2]
[421271551,1777312248697,-329.93787211,0.000149,2]
[421271552,1777312248707,-370.0,0.00014917,2]
[421271553,1777312248716,-370.0,0.00014944,2]
[421271554,1777312248726,-668.65185757,0.00014946,2]
[421271555,1777312248736,-2434.74389024,0.00014946,2]
[421271556,1777312248745,-5888.0,0.0001496,2]
[421271557,1777312248755,-370.0,0.00014972,2]
[421271558,1777312248765,-10146.53081927,0.00015,2]
[421271559,1777312248776,-697.05149269,0.00015001,2]
[421271560,1777312248786,-2524.82941417,0.00015001,2]
[421271561,1777312248796,-821.0,0.00015004,2]
[421271562,1777312248805,-589.8591853,0.00015056,2]
[421271563,1777312248815,-370.0,0.00015061,2]
[421271564,1777312248825,-1139.98939809,0.00015078,2]
[421271565,1777312248834,-10146.53081927,0.000152,2]
[421271566,1777312248844,-5888.0,0.00015226,2]
[421271567,1777312248854,-1000.0,0.00015231,2]
[421271568,1777312248864,-244.0,0.00015231,2]
[421271569,1777312248873,-5888.0,0.00015257,2]
[421271570,1777312248883,-5888.0,0.00015269,2]
[421271571,1777312248892,-10146.53081927,0.000153,2]
[421271572,1777312248902,-821.0,0.00015302,2]
[421271573,1777312248912,-821.0,0.00015323,2]
[421271574,1777312248922,-500.0,0.00015386,2]
[421271575,1777312248932,-500.0,0.00015386,2]
[421271576,1777312248942,-5888.0,0.00015418,2]
[421271577,1777312248952,-153.07664,0.00015428,2]
[421271578,1777312248961,-151.0,0.00015428,2]
[421271579,1777312248971,-151.0,0.00015428,2]
[421271580,1777312248981,-151.0,0.00015428,2]
[421271581,1777312248991,-5888.0,0.00015428,2]
[421271582,1777312249000,-10146.53081927,0.000155,2]
[421271583,1777312249010,-231.0,0.00015534,2]
[421271584,1777312249020,-223.703782,0.00015546,7]
[421271585,1777312249030,-160.0,0.00015546,7]
[421271586,1777312249040,-232.458999,0.00015546,7]
[421271587,1777312249049,-304.917998,0.00015546,7]
[421271588,1777312249058,-160.0,0.00015546,7]
[421271589,1777312249068,-1270.002709,0.00015546,7]
[421271590,1777312249078,-2380.005419,0.00015546,7]
[421271591,1777312249088,-160.0,0.00015546,2]
[421271592,1777312249097,-625.284172,0.00015546,2]
[421271593,1777312249107,-1090.568344,0.00015546,2]
[421271594,1777312249116,-10146.53081927,0.000156,2]
[421271595,1777312249126,-1064.0297305,0.000156,2]
[421271596,1777312249136,-821.0,0.00015644,2]
[421271597,1777312249145,-5888.0,0.00015672,2]
[421271598,1777312249154,-856.05814529,0.000158,2]
[421271599,1777312249164,-10146.53081927,0.000158,2]
[421271600,1777312249173,-1064.0297305,0.000158,2]
[421271601,1777312249183,-16241.7679424,0.00015861,2]
[421271602,1777312249192,-151.0,0.00015863,2]
[421271603,1777312249202,-151.0,0.00015863,2]
[421271604,1777312249211,-151.0,0.00015863,2]
[421271605,1777312249220,-151.0,0.00015863,2]
[421271606,1777312249230,-151.0,0.00015863,2]
[421271607,1777312249239,-151.0,0.00015863,2]
[421271608,1777312249248,-160.0,0.00015863,7]
[421271609,1777312249258,-30000.0,0.00015863,2]
[421271610,1777312249267,-30000.0,0.00015863,2]
[421271611,1777312249277,-5385.00618428,0.00015863,2]
[421271612,1777312366058,1280.0,0.00025243,120]
[421271613,1777312492515,153.27289051,0.00017299,120]
[421271614,1777312629002,2053.0,0.00025186,120]
[421271618,1777312856859,151099.7,0.0002465,120]
[421271649,1777313432179,-2092.94734764,9.314e-05,10]
[421271650,1777313432193,-150.0,9.551e-05,2]
[421271651,1777313432208,-17.90974244,9.551e-05,2]
[421271652,1777313432229,-536.09025756,9.551e-05,2]
[421271653,1777313432240,-300.0,9.599e-05,2]
[421271654,1777313432251,-1200.0,9.599e-05,2]
[421271655,1777313432262,-2430.95199582,9.6e-05,2]
[421271670,1777313438341,-5410.40815134,9.6e-05,2]
[421271671,1777313438352,-300.0,9.893e-05,2]
[421271672,1777313438364,-300.0,9.893e-05,2]
[421271673,1777313438376,-300.0,9.893e-05,2]
[421271674,1777313438389,-300.0,9.893e-05,2]
[421271675,1777313438400,-300.0,9.893e-05,2]
[421271676,1777313438412,-300.0,9.893e-05,2]
[421271677,1777313438423,-300.0,9.893e-05,2]
[421271678,1777313438435,-300.0,9.893e-05,2]
[421271679,1777313438447,-300.0,9.893e-05,2]
[421271680,1777313438458,-300.0,9.893e-05,2]
[421271681,1777313438470,-300.0,9.893e-05,2]
[421271682,1777313438481,-300.0,9.893e-05,2]
[421271683,1777313438492,-300.0,9.893e-05,2]
[421271684,1777313438503,-300.0,9.893e-05,2]
[421271685,1777313438515,-300.0,9.893e-05,2]
[421271686,1777313438526,-600.0,9.893e-05,2]
[421271687,1777313438538,-720.0,0.00010882,2]
[421271688,1777313438549,-568.77562834,0.00011191,2]
[421271689,1777313438560,-177.0,0.00011551,2]
[421271690,1777313438571,-500.0,0.0001178,2]
[421271691,1777313438582,-864.0,0.00011971,2]
[421271692,1777313438594,-186.492,0.00012261,2]
[421271693,1777313438605,-500.0,0.000124,2]
[421271694,1777313438616,-500.0,0.0001302,2]
[421271695,1777313438627,-1000.0,0.00013168,2]
[421271696,1777313438639,-160.0,0.00013331,2]
[421271697,1777313438650,-180.21087091,0.00013365,14]
[421271698,1777313438661,-204.0,0.00013551,2]
[421271699,1777313438673,-500.0,0.00013555,2]
[421271700,1777313438684,-500.0,0.00013671,2]
[421271701,1777313438695,-500.0,0.00013698,2]
[421271702,1777313438707,-500.0,0.00013698,2]
[421271703,1777313438717,-500.0,0.00013698,2]
[421271704,1777313438729,-346.24,0.00013698,2]
[421271705,1777313438740,-1000.0,0.00013699,2]
[421271706,1777313438751,-1000.0,0.00014484,2]
[421271707,1777313438763,-244.0,0.00014484,2]
[421271708,1777313438775,-7095.93857197,0.00014845,2]
[421271709,1777313438786,-314.0,0.00014849,2]
[421271710,1777313438797,-179.758,0.00014904,2]
[421271711,1777313438809,-10314.09086425,0.00015,2]
[421271712,1777313438820,-10314.09086425,0.000152,2]
[421271713,1777313438832,-10314.09086425,0.000153,2]
[421271714,1777313438843,-500.0,0.00015386,2]
[421271715,1777313438854,-500.0,0.00015386,2]
[421271716,1777313438865,-10314.09086425,0.000155,2]
[421271717,1777313438877,-759.99293207,0.00015546,2]
[421271718,1777313438888,-231.0,0.00015551,2]
[421271719,1777313438898,-7095.93857193,0.00015567,2]
[421271720,1777313438908,-638.4178383,0.000156,2]
[421271721,1777313438919,-10314.09086425,0.000156,2]
[421271722,1777313438930,-3062.535185,0.00015629,2]
[421271723,1777313438942,-455.9805711,0.00015718,2]
[421271724,1777313438955,-638.4178383,0.000158,2]
[421271725,1777313438966,-10314.09086425,0.000158,2]
[421271726,1777313438978,-500.0,0.00015862,2]
[421271727,1777313438990,-500.0,0.00015862,2]
[421271728,1777313439001,-239.05683118,0.00015862,2]
[421271729,1777313439013,-540.14387439,0.00015862,2]
[421271730,1777313439024,-30000.0,0.00015863,2]
[421271731,1777313439036,-30000.0,0.00015863,2]
[421271732,1777313439048,-30000.0,0.00015863,7]
[421271733,1777313439059,-24677.57789514,0.00015863,7]
[421271734,1777313439071,-638.4178383,0.000159,2]
[421271735,1777313439083,-10314.09086425,0.000159,2]
[421271736,1777313439094,-5888.0,0.00015931,2]
[421271737,1777313439107,-1000.0,0.00015933,2]
[421271738,1777313439119,-492.0,0.00015933,2]
[421271739,1777313439131,-23387.0,0.00016,2]
[421271740,1777313439144,-1468.79271411,0.00016,2]
[421271741,1777313439156,-3000.0,0.00016,2]
[421271742,1777313439168,-3000.0,0.0001601,2]
[421271743,1777313439180,-3000.0,0.0001602,2]
[421271744,1777313439192,-3000.0,0.0001603,2]